lending/lending_fUSD_20260325
["ID","MTS","AMOUNT","RATE_DAILY","PERIOD"]
[408890500,1774397445519,-500.0,0.00015973,2]
[408890501,1774397445529,-500.0,0.00015973,2]
[408890502,1774397445538,-500.0,0.00015973,2]
[408890503,1774397445549,-500.83207171,0.00015973,2]
[408890504,1774397445560,-500.0,0.00015973,2]
[408890505,1774397445570,-500.84657428,0.00015973,2]
[408890506,1774397445583,-500.0,0.00015973,2]
[408890507,1774397445592,-500.0,0.00015973,2]
[408890508,1774397445604,-500.0,0.00015973,2]
[408890509,1774397445615,-500.0,0.00015973,2]
[408890510,1774397445625,-500.0,0.00015973,2]
[408890511,1774397445635,-500.0,0.00015994,2]
[408890512,1774397445645,-500.0,0.00015994,2]
[408890513,1774397445655,-500.0,0.00015994,2]
[408890514,1774397445665,-500.0,0.00015994,2]
[408890515,1774397445675,-500.0,0.00015994,2]
[408890516,1774397445684,-500.0,0.00015994,2]
[408890517,1774397445694,-500.0,0.00015994,2]
[408890518,1774397445704,-500.0,0.00015994,2]
[408890519,1774397445715,-399.89166551,0.00015994,2]
[408890520,1774397445726,-500.0,0.00015994,2]
[408890521,1774397445735,-500.0,0.00015994,2]
[408890522,1774397445745,-500.0,0.00015994,2]
[408890523,1774397445754,-500.0,0.00015994,2]
[408890524,1774397445766,-500.0,0.00015994,2]
[408890525,1774397445776,-500.0,0.00015994,2]
[408890526,1774397445787,-500.0,0.00015994,2]
[408890527,1774397445796,-500.0,0.00015994,2]
[408890528,1774397445805,-500.0,0.00015994,2]
[408890529,1774397445815,-500.0,0.00015994,2]
[408890530,1774397445824,-6595.4934129,0.00015995,2]
[408890531,1774397445834,-4913.263717,0.00015995,2]
[408890532,1774397445843,-666700.7965114,0.00015995,2]
[408890533,1774397445853,-137298.488179,0.00015995,2]
[408890534,1774397445862,-1958.6478053,0.00015995,2]
[408890535,1774397445871,-165.702438,0.00015997,2]
[408890536,1774397445880,-666.0,0.00015999,2]
[408890537,1774397445889,-516.12327646,0.00015999,2]
[408890538,1774397445899,-534.8771196,0.00015999,2]
[408890539,1774397445908,-500.0,0.00015999,2]
[408890540,1774397445918,-500.0,0.00015999,2]
[408890541,1774397445928,-500.0,0.00015999,2]
[408890542,1774397445937,-500.0,0.00015999,2]
[408890543,1774397445946,-500.0,0.00015999,2]
[408890544,1774397445955,-500.0,0.00015999,2]
[408890545,1774397445964,-500.0,0.00015999,2]
[408890546,1774397445973,-500.0,0.00015999,2]
[408890547,1774397445983,-500.0,0.00015999,2]
[408890548,1774397445992,-500.0,0.00015999,2]
[408890549,1774397446001,-199.53558888,0.00015999,2]
[408890550,1774397446010,-1454199.5881875,0.00016,2]
[408890555,1774397446773,-270.850722,0.00013965,2]
[408890556,1774397446782,-5000.0,0.00014588,2]
[408890557,1774397446792,-154.12630173,0.00014988,2]
[408890558,1774397446802,-336.423127,0.00015156,7]
[408890559,1774397446811,-8168.24964883,0.00016,2]
[408890561,1774397447340,-21.2742843,0.00016,2]
[408890562,1774397447382,-546.0,0.00016,2]
[408890563,1774397447397,-705460.00000002,0.00016,2]
[408890564,1774397447421,-875.28877313,0.00016,2]
[408890565,1774397447454,-887.00102635,0.00016,2]
[408890566,1774397447477,-4694.93067227,0.00016,2]
[408890567,1774397447637,-989.29856,0.00016,2]
[408890568,1774397447649,-26151.36178392,0.00016,2]
[408890575,1774397489279,2972.002,0.00012615,2]
[408890576,1774397489424,183.913,0.00012615,2]
[408890585,1774397785967,-1200.0,0.00012672,2]
[408890586,1774397785995,-300.0,0.00012672,2]
[408890587,1774397786198,-2458.410449,0.00012673,2]
[408890588,1774397789511,-5000.01,0.00012673,2]
[408890589,1774397789529,-4029.76733212,0.00012673,2]
[408890590,1774397789538,-970.24266788,0.00012673,2]
[408890591,1774397791967,-5000.01,0.00012673,2]
[408890592,1774397792142,-92.24996863,0.00012673,2]
[408890593,1774397849362,4815.51006274,0.00012673,2]
[408890594,1774397849385,5000.01,0.00012673,2]
[408890595,1774397850176,-832.10060329,0.00012673,2]
[408890596,1774397903154,1430.8502,0.00012673,2]
[408890597,1774397926457,1904.95859342,0.00012673,2]
[408890598,1774397926479,3399.7312135,0.00012673,2]
[408890599,1774398022409,1600.2787865,0.00012673,2]
[408890600,1774398022433,5000.01,0.00012673,2]
[408890601,1774398022456,3739.08021649,0.00012673,2]
[408890602,1774398031430,1260.92978351,0.00012673,2]
[408890603,1774398031452,548.46411649,0.00012673,2]
[408890604,1774398043936,2500.0,0.00012673,2]
[408890605,1774398086080,-486.33,0.000127,2]
[408890606,1774398095581,-2827.58702735,0.00012706,2]
[408890607,1774398095605,-2584.81297265,0.00012706,2]
[408890608,1774398095615,-300.0,0.00012771,2]
[408890609,1774398095627,-150.0,0.00012771,2]
[408890610,1774398095635,-1000.0,0.00012772,2]
[408890611,1774398095645,-198.68439209,0.00012772,2]
[408890612,1774398095657,-401.4574317,0.00012772,2]
[408890613,1774398095668,-365.05520356,0.00012772,2]
[408890614,1774398098140,-134.94479644,0.00012772,2]
[408890615,1774398098426,-500.0,0.00012772,2]
[408890616,1774398098461,-500.0,0.00012772,2]
[408890617,1774398098494,-500.0,0.00012772,2]
[408890618,1774398098524,-500.0,0.00012772,2]
[408890619,1774398098555,-230.12040712,0.00012772,2]
[408890620,1774398098610,-269.87959288,0.00012772,2]
[408890621,1774398098641,-500.0,0.00012772,2]
[408890622,1774398098672,-500.0,0.00012772,2]
[408890623,1774398098704,-500.0,0.00012772,2]
[408890624,1774398098736,-500.0,0.00012772,2]
[408890625,1774398099116,-269.87959288,0.00012772,2]
[408890626,1774398099130,-230.12040712,0.00012772,2]
[408890627,1774398099139,-230.13040712,0.00012772,2]
[408890628,1774398101253,-269.86959288,0.00012772,2]
[408890629,1774398101286,-500.0,0.00012772,2]
[408890630,1774398101323,-500.0,0.00012772,2]
[408890631,1774398101355,-500.0,0.00012772,2]
[408890632,1774398101388,-500.0,0.00012772,2]
[408890633,1774398101491,-460.27081424,0.00012772,2]
[408890634,1774398101525,-39.72918576,0.00012772,2]
[408890635,1774398101556,-385.60317505,0.00012772,2]
[408890636,1774398101588,-500.0,0.00012772,2]
[408890637,1774398101619,-500.0,0.00012772,2]
[408890638,1774398101654,-500.0,0.00012772,2]
[408890639,1774398101686,-500.0,0.00012772,2]
[408890640,1774398101837,-149.34527838,0.00012772,2]
[408890641,1774398104185,-350.65472162,0.00012772,2]
[408890642,1774398104220,-500.0,0.00012772,2]
[408890643,1774398104255,-500.0,0.00012772,2]
[408890644,1774398104289,-500.0,0.00012772,2]
[408890645,1774398178949,1298.70055676,0.00012728,2]
[408890646,1774398178973,301.29944324,0.00012728,2]
[408890647,1774398191456,4145.9843,0.00012673,2]
[408890648,1774398196848,552.72625676,0.00012673,2]
[408890649,1774398196873,5000.01,0.00012673,2]
[408890650,1774398196894,5000.01,0.00012673,2]
[408890651,1774398202672,-3701.30944324,0.00012673,2]
[408890652,1774398205586,-5000.01,0.00012673,2]
[408890653,1774398205685,-5000.01,0.00012673,2]
[408890654,1774398208715,-5000.01,0.00012673,2]
[408890655,1774398208922,-5000.01,0.00012673,2]
[408890656,1774398212451,-788.5346,0.00012673,2]
[408890657,1774398212642,-3422.9408,0.00012673,2]
[408890659,1774398339136,-378.81,0.00012303,2]
[408890660,1774398339157,-281.35,0.00012349,2]
[408890661,1774398339179,-2292.15309861,0.00012673,2]
[408890662,1774398456361,261.36797764,0.000101,2]
[408890664,1774398530605,269.95045179,0.000107,2]
[408890665,1774398536663,9468.69157057,9.5e-05,3]
[408890666,1774398536694,1521.76602664,9.5e-05,3]
[408890668,1774398546086,-500.0,0.00011977,2]
[408890669,1774398546106,-166.66,0.00012241,2]
[408890670,1774398546126,-168.64923651,0.000126,2]
[408890671,1774398546147,-168.64923651,0.00012626,2]
[408890672,1774398546167,-166.66,0.00012645,2]
[408890673,1774398546188,-300.0,0.00012651,2]
[408890674,1774398546208,-9582.8585994,0.00012652,2]
[408890675,1774398546228,-168.64923651,0.00012652,2]
[408890676,1774398546248,-4355.08444379,0.00012652,2]
[408890677,1774398546269,-9305.4321027,0.00012673,2]
[408890678,1774398546291,-151.78246044,0.000127,2]
[408890679,1774398546312,-10475.23264633,0.00012701,2]
[408890680,1774398548088,-7999.71542924,0.00012701,2]
[408890681,1774398559118,-4028.94184375,0.00012701,2]
[408890682,1774398560770,5000.01,0.00012632,2]
[408890683,1774398607195,200.0,0.00012293,2]
[408890690,1774398631298,-308.8695174,0.0001263,2]
[408890691,1774398631364,-691.1304826,0.0001263,2]
[408890692,1774398631373,-300.0,0.00012631,2]
[408890693,1774398631382,-1200.0,0.00012631,2]
[408890694,1774398631391,-150.0,0.00012631,2]
[408890695,1774398631401,-304.0,0.00012631,2]
[408890696,1774398631410,-144569.938,0.00012632,2]
[408890697,1774398631419,-1076.55713066,0.00012673,2]
[408890698,1774398631428,-149875.94090618,0.00012701,2]
[408890699,1774398631437,-43895.9001328,0.00012732,2]
[408890700,1774398631448,-69944.34107637,0.00012732,2]
[408890701,1774398631461,-42680.15898207,0.00012732,2]
[408890702,1774398631480,-248.95,0.00012752,2]
[408890703,1774398631491,-500.0,0.00012772,2]
[408890704,1774398631501,-500.0,0.00012772,2]
[408890705,1774398631512,-431.73368612,0.00012772,2]
[408890706,1774398631521,-315.26804969,0.00012772,2]
[408890707,1774398631531,-500.0,0.00012772,2]
[408890708,1774398631540,-379.40246136,0.00012772,2]
[408890709,1774398631549,-500.0,0.00012772,2]
[408890711,1774398631559,-379.40246136,0.00012772,2]
[408890713,1774398631568,-500.0,0.00012772,2]
[408890715,1774398631578,-379.40246136,0.00012772,2]
[408890717,1774398631588,-500.0,0.00012772,2]
[408890719,1774398631597,-379.40246136,0.00012772,2]
[408890721,1774398631606,-500.0,0.00012772,2]
[408890722,1774398631615,-379.40246136,0.00012772,2]
[408890724,1774398631624,-500.0,0.00012772,2]
[408890725,1774398631634,-379.40246136,0.00012772,2]
[408890726,1774398631644,-500.0,0.00012772,2]
[408890727,1774398631653,-2377.601,0.00012772,2]
[408890728,1774398631662,-183.914,0.00012772,2]
[408890729,1774398631672,-12791.089,0.00012773,2]
[408890730,1774398631680,-112942.39870715,0.00012773,2]
[408890731,1774398631692,-103394.95598237,0.00012773,2]
[408890732,1774398631703,-800.0,0.00012773,2]
[408890733,1774398631720,-1630.28231173,0.00012773,2]
[408890734,1774398631735,-292.91733824,0.00012773,2]
[408890735,1774398631745,-700.0,0.00012773,2]
[408890736,1774398631757,-861.64940807,0.00012773,2]
[408890737,1774398631767,-3574.01007193,0.00012773,2]
[408890738,1774398637775,-3315.05757414,0.00012369,2]
[408890739,1774398637788,-1782.03207161,0.00012369,2]
[408890740,1774398637828,-837.94101442,0.00012369,2]
[408890741,1774398637880,-25052.00933983,0.00012369,2]
[408890742,1774398637889,-379.40246136,0.00012772,2]
[408890743,1774398637899,-14938.88021082,0.00012773,2]
[408890744,1774398638090,-4130.39922894,0.00012773,2]
[408890745,1774398638101,-592.00000003,0.00012773,2]
[408890752,1774398639964,-145025.07934072,0.00012773,2]
[408890753,1774398639977,-1000.0,0.00012773,2]
[408890754,1774398639987,-150.0,0.000128,2]
[408890755,1774398639997,-200.0,0.000128,4]
[408890756,1774398640006,-2895.48,0.00012849,2]
[408890757,1774398640015,-732.71,0.00012865,2]
[408890758,1774398640024,-500.0,0.00012865,2]
[408890759,1774398640033,-500.0,0.00012865,2]
[408890760,1774398640042,-500.0,0.00012865,2]
[408890761,1774398640054,-200.0,0.00012865,2]
[408890762,1774398640063,-500.0,0.00012865,2]
[408890763,1774398640072,-500.0,0.00012865,2]
[408890764,1774398640082,-500.0,0.00012865,2]
[408890765,1774398640091,-500.0,0.00012865,2]
[408890766,1774398640101,-500.0,0.00012865,2]
[408890767,1774398640110,-500.0,0.00012865,2]
[408890768,1774398640119,-500.0,0.00012865,2]
[408890769,1774398640129,-151.0,0.00012865,2]
[408890770,1774398640138,-500.0,0.00012865,2]
[408890771,1774398640148,-151.0,0.00012865,2]
[408890772,1774398640158,-151.0,0.00012865,2]
[408890773,1774398640167,-151.0,0.00012865,2]
[408890774,1774398640177,-151.0,0.00012865,2]
[408890775,1774398640186,-151.0,0.00012865,2]
[408890776,1774398640195,-151.0,0.00012865,2]
[408890777,1774398640204,-151.0,0.00012865,2]
[408890778,1774398640213,-151.0,0.00012865,2]
[408890779,1774398640222,-151.0,0.00012865,2]
[408890780,1774398640232,-151.0,0.00012865,2]
[408890781,1774398640241,-151.0,0.00012865,2]
[408890782,1774398640250,-151.0,0.00012865,2]
[408890783,1774398640259,-151.0,0.00012865,2]
[408890784,1774398640269,-151.0,0.00012865,2]
[408890785,1774398640279,-151.0,0.00012865,2]
[408890786,1774398640288,-151.0,0.00012865,2]
[408890787,1774398640298,-500.0,0.00012872,2]
[408890788,1774398640307,-500.0,0.00012872,2]
[408890789,1774398640316,-500.0,0.00012872,2]
[408890790,1774398640325,-225.65160718,0.00012872,2]
[408890791,1774398640339,-458.1833393,0.00012872,2]
[408890792,1774398640349,-500.0,0.00012873,2]
[408890793,1774398640358,-500.0,0.00012873,2]
[408890794,1774398640367,-160.15749861,0.00012873,2]
[408890795,1774398640376,-500.0,0.00012873,2]
[408890796,1774398640386,-500.0,0.00012873,2]
[408890797,1774398640395,-500.0,0.00012873,2]
[408890798,1774398640404,-500.0,0.00012873,2]
[408890799,1774398640417,-500.0,0.00012873,2]
[408890800,1774398640427,-460.0,0.00012873,2]
[408890801,1774398640436,-371.0,0.00012873,2]
[408890802,1774398640446,-368.0,0.00012898,2]
[408890803,1774398640455,-542.27464947,0.000129,2]
[408890804,1774398640469,-299.99,0.000129,2]
[408890805,1774398640480,-500.0,0.000129,4]
[408890806,1774398640490,-635.0,0.00012973,2]
[408890807,1774398640499,-378.81,0.00012987,2]
[408890808,1774398640509,-418.0,0.00013,2]
[408890809,1774398640518,-4999.99,0.00013,2]
[408890810,1774398640527,-999.99,0.00013,2]
[408890811,1774398640536,-9999.99,0.00013,2]
[408890812,1774398640545,-150.99,0.00013,2]
[408890813,1774398640555,-7362.6,0.00013,2]
[408890814,1774398640564,-1437.68337955,0.00013,2]
[408890815,1774398640574,-9582.8585994,0.00013013,2]
[408890816,1774398640584,-699.0,0.00013023,2]
[408890817,1774398640593,-150.0,0.00013029,2]
[408890818,1774398640602,-180.364595,0.00013031,2]
[408890819,1774398640611,-9305.43210268,0.00013032,2]
[408890820,1774398640621,-166.66,0.00013049,2]
[408890821,1774398640630,-4355.08444372,0.00013116,2]
[408890822,1774398640639,-732.71,0.00013139,2]
[408890823,1774398640647,-500.0,0.00013146,2]
[408890824,1774398640657,-260.52652291,0.00013173,2]
[408890825,1774398640665,-479.3557792,0.00013173,2]
[408890826,1774398640674,-440.1868782,0.00013173,2]
[408890827,1774398640683,-503.47478759,0.00013173,2]
[408890828,1774398640692,-2350.93559317,0.00013248,2]
[408890829,1774398640701,-13541.53,0.00013255,2]
[408890830,1774398640710,-210.06239566,0.00013272,2]
[408890831,1774398640719,-308.25174519,0.00013272,2]
[408890832,1774398640731,-329.56019345,0.00013272,2]
[408890833,1774398640740,-342.25164,0.00013272,2]
[408890834,1774398640749,-9582.8585994,0.00013374,2]
[408890835,1774398640758,-241.62725414,0.00013381,2]
[408890836,1774398640767,-286.0,0.00013381,2]
[408890837,1774398640776,-500.0,0.0001339,2]
[408890838,1774398640785,-500.0,0.0001339,2]
[408890839,1774398640794,-502.26356186,0.0001339,2]
[408890840,1774398640803,-500.0,0.0001339,2]
[408890841,1774398640812,-500.0,0.0001339,2]
[408890842,1774398640821,-500.0,0.0001339,2]
[408890843,1774398640830,-500.0,0.0001339,2]
[408890844,1774398640839,-500.0,0.0001339,2]
[408890845,1774398640848,-9305.43210268,0.0001339,2]
[408890846,1774398640856,-3174.18414955,0.000134,2]
[408890847,1774398640866,-542.27464943,0.000134,2]
[408890848,1774398640875,-732.71,0.00013413,2]
[408890849,1774398640884,-200.0,0.00013413,2]
[408890850,1774398640893,-500.0,0.0001342,2]
[408890851,1774398640902,-383.07633678,0.00013421,2]
[408890852,1774398640911,-1010.66843448,0.00013421,2]
[408890853,1774398640920,-1000.0,0.00013421,2]
[408890854,1774398640929,-1000.0,0.00013421,2]
[408890855,1774398640938,-591.58519453,0.00013421,2]
[408890856,1774398640947,-3240.0,0.00013425,2]
[408890857,1774398640956,-399.35415466,0.00013428,2]
[408890858,1774398640965,-481.58746921,0.00013428,2]
[408890859,1774398640975,-166.66,0.00013453,2]
[408890860,1774398640984,-1000.0,0.000135,2]
[408890861,1774398640993,-348.97,0.0001353,2]
[408890862,1774398641002,-1076.55713066,0.00013536,2]
[408890863,1774398641012,-1985.13172867,0.00013569,2]
[408890864,1774398641021,-4355.08444372,0.0001358,2]
[408890865,1774398641030,-378.81,0.0001367,2]
[408890866,1774398641039,-732.71,0.00013687,2]
[408890867,1774398641048,-500.0,0.00013694,2]
[408890868,1774398641057,-500.0,0.00013698,2]
[408890869,1774398641065,-500.0,0.00013698,2]
[408890870,1774398641074,-500.0,0.00013698,2]
[408890871,1774398641083,-500.0,0.00013698,2]
[408890872,1774398641092,-500.0,0.00013698,2]
[408890873,1774398641102,-500.0,0.00013698,2]
[408890874,1774398641110,-500.0,0.00013698,2]
[408890875,1774398641119,-500.0,0.00013698,2]
[408890876,1774398641128,-500.0,0.00013698,2]
[408890877,1774398641137,-500.0,0.00013698,2]
[408890878,1774398641146,-500.0,0.00013698,2]
[408890879,1774398641155,-500.0,0.00013698,2]
[408890880,1774398641164,-500.0,0.00013698,2]
[408890881,1774398641174,-504.96130328,0.00013698,2]
[408890882,1774398641183,-500.0,0.00013698,2]
[408890883,1774398641192,-500.0,0.00013698,2]
[408890884,1774398641201,-500.0,0.00013698,2]
[408890885,1774398641211,-500.0,0.00013698,2]
[408890886,1774398641220,-500.0,0.00013698,2]
[408890887,1774398641231,-500.0,0.00013698,2]
[408890888,1774398641240,-500.0,0.00013698,2]
[408890889,1774398641249,-500.0,0.00013698,2]
[408890890,1774398641258,-500.0,0.00013698,2]
[408890891,1774398641267,-500.0,0.00013698,2]
[408890892,1774398641276,-500.0,0.00013698,2]
[408890893,1774398641285,-210.61405512,0.00013698,2]
[408890894,1774398641295,-154.82251136,0.00013698,2]
[408890895,1774398641304,-500.0,0.00013698,2]
[408890896,1774398641313,-500.0,0.00013698,2]
[408890897,1774398641321,-500.0,0.00013698,2]
[408890898,1774398641330,-631.81161049,0.00013698,2]
[408890899,1774398641339,-500.0,0.00013698,2]
[408890900,1774398641348,-500.0,0.00013698,2]
[408890901,1774398641357,-500.0,0.00013698,2]
[408890902,1774398641366,-500.0,0.00013698,2]
[408890903,1774398641375,-500.0,0.00013698,2]
[408890904,1774398641620,-500.0,0.00013698,2]
[408890905,1774398641630,-500.0,0.00013698,2]
[408890906,1774398641639,-500.0,0.00013698,2]
[408890907,1774398641648,-500.0,0.00013698,2]
[408890908,1774398641657,-500.0,0.00013698,2]
[408890909,1774398641666,-500.0,0.00013698,2]
[408890910,1774398641676,-500.0,0.00013698,2]
[408890911,1774398641684,-500.0,0.00013698,2]
[408890912,1774398641694,-500.0,0.00013698,2]
[408890913,1774398641703,-500.0,0.00013698,2]
[408890914,1774398641712,-500.0,0.00013698,2]
[408890915,1774398641721,-500.0,0.00013698,2]
[408890916,1774398641731,-500.0,0.00013698,2]
[408890917,1774398641740,-500.0,0.00013698,2]
[408890918,1774398641749,-500.0,0.00013698,2]
[408890919,1774398641759,-500.0,0.00013698,2]
[408890920,1774398641770,-500.0,0.00013698,2]
[408890921,1774398641779,-500.0,0.00013698,2]
[408890922,1774398641791,-500.0,0.00013698,2]
[408890923,1774398641800,-500.0,0.00013698,2]
[408890924,1774398641811,-500.0,0.00013698,2]
[408890925,1774398641821,-500.0,0.00013698,2]
[408890926,1774398641830,-500.0,0.00013698,2]
[408890927,1774398641839,-500.0,0.00013698,2]
[408890928,1774398641848,-500.0,0.00013698,2]
[408890929,1774398641859,-526.89512762,0.00013698,2]
[408890930,1774398641869,-531.58377014,0.00013698,2]
[408890931,1774398641878,-2222.25,0.00013699,2]
[408890932,1774398641888,-244.45832513,0.00013699,2]
[408890933,1774398641898,-4104.48,0.000137,2]
[408890934,1774398641907,-3491.44,0.000137,2]
[408890935,1774398641917,-1213.42,0.000137,2]
[408890936,1774398641928,-3537.96,0.000137,2]
[408890937,1774398641937,-22104.14,0.000137,2]
[408890938,1774398641946,-22104.14,0.000137,2]
[408890939,1774398641956,-1166.0,0.00013725,2]
[408890940,1774398641965,-255.0,0.00013729,2]
[408890941,1774398641973,-9582.8585994,0.00013735,2]
[408890942,1774398641984,-9305.43210268,0.00013749,2]
[408890943,1774398641993,-236.732345,0.00013833,7]
[408890944,1774398642002,-289.465598,0.00013833,7]
[408890945,1774398642011,-219.497152,0.00013833,7]
[408890946,1774398642020,-420.0,0.00013857,2]
[408890947,1774398642030,-166.66,0.00013857,2]
[408890948,1774398642039,-500.0,0.00013867,2]
[408890949,1774398642048,-500.86404044,0.00013867,2]
[408890950,1774398642058,-500.0,0.00013867,2]
[408890951,1774398642067,-500.0,0.00013867,2]
[408890952,1774398642076,-500.0,0.00013867,2]
[408890953,1774398642085,-500.43058459,0.00013867,2]
[408890954,1774398642097,-500.7456305,0.00013867,2]
[408890955,1774398642107,-287.3672538,0.00013868,2]
[408890956,1774398642116,-250.0,0.00013871,2]
[408890957,1774398642125,-500.0,0.00013886,2]
[408890958,1774398642134,-500.83207171,0.00013886,2]
[408890959,1774398642143,-500.0,0.00013886,2]
[408890960,1774398642152,-1680.0,0.00013894,2]
[408890961,1774398642162,-542.27464943,0.000139,2]
[408890962,1774398642171,-500.0,0.00013917,2]
[408890963,1774398642180,-600.0,0.00013917,2]
[408890964,1774398642189,-600.0,0.00013917,2]
[408890965,1774398642198,-229.24,0.00013936,2]
[408890966,1774398642207,-197.81018147,0.00013938,2]
[408890967,1774398642217,-665.1970891,0.00013938,2]
[408890968,1774398642227,-1000.0,0.00013938,2]
[408890969,1774398642237,-1000.0,0.00013938,2]
[408890970,1774398642246,-1000.0,0.00013938,2]
[408890971,1774398642255,-1000.0,0.00013938,2]
[408890972,1774398642264,-1000.0,0.00013938,2]
[408890973,1774398642274,-250.0,0.0001394,2]
[408890974,1774398642283,-500.0,0.0001395,2]
[408890975,1774398642293,-500.0,0.0001396,2]
[408890976,1774398642302,-500.0,0.0001396,2]
[408890977,1774398642312,-732.71,0.00013961,2]
[408890978,1774398642321,-200.0,0.00013961,2]
[408890979,1774398642330,-500.0,0.00013963,2]
[408890980,1774398642341,-500.0,0.00013963,2]
[408890981,1774398642349,-500.0,0.00013963,2]
[408890982,1774398642359,-608.00046403,0.00013968,2]
[408890983,1774398642368,-1500.0,0.00013968,2]
[408890984,1774398642378,-1500.0,0.00013968,2]
[408890986,1774398642387,-610.60330757,0.00013983,2]
[408890988,1774398642396,-500.0,0.00013983,2]
[408890991,1774398642406,-500.0,0.00013983,2]
[408890992,1774398642416,-500.0,0.00013983,2]
[408890994,1774398642426,-132646.18715259,0.0001399,2]
[408890996,1774398642435,-500.0,0.00014,2]
[408890997,1774398642446,-347.94216551,0.00014,2]
[408890998,1774398642455,-366.41832896,0.00014,2]
[408890999,1774398642467,-506.0,0.00014,2]
[408891000,1774398642477,-201.662097,0.00014,2]
[408891001,1774398642487,-4355.08444372,0.00014044,2]
[408891002,1774398642496,-1700.0,0.00014082,2]
[408891003,1774398642507,-1300.0,0.00014082,2]
[408891004,1774398642517,-9582.8585994,0.00014096,2]
[408891005,1774398642526,-197.2549,0.000141,2]
[408891006,1774398642535,-9305.43210268,0.00014107,2]
[408891007,1774398642546,-59588.20477193,0.00014115,2]
[408891008,1774398642556,-204.452901,0.00014201,7]
[408891009,1774398642566,-1852.03794754,0.0001421,7]
[408891010,1774398642575,-295.385861,0.0001422,7]
[408891011,1774398642585,-732.71,0.00014235,2]
[408891012,1774398642595,-166.66,0.00014261,2]
[408891013,1774398642604,-1600.0,0.00014319,2]
[408891014,1774398642614,-378.81,0.00014354,2]
[408891015,1774398642623,-2222.25,0.00014384,2]
[408891016,1774398642632,-1076.55713066,0.00014398,2]
[408891017,1774398642642,-542.27464943,0.000144,2]
[408891018,1774398642652,-500.0,0.00014411,2]
[408891019,1774398642662,-1000.0,0.00014415,2]
[408891020,1774398642672,-1000.0,0.00014415,2]
[408891021,1774398642682,-505.2432025,0.00014415,2]
[408891022,1774398642691,-1000.0,0.00014434,2]
[408891023,1774398642701,-406.22997108,0.00014434,2]
[408891024,1774398642711,-9582.8585994,0.00014456,2]
[408891025,1774398642721,-1000.0,0.00014465,2]
[408891026,1774398642732,-9305.43210268,0.00014466,2]
[408891027,1774398642742,-1500.0,0.00014486,2]
[408891028,1774398642752,-929.84899427,0.00014486,2]
[408891029,1774398642761,-1500.0,0.00014486,2]
[408891030,1774398642771,-1500.0,0.00014486,2]
[408891031,1774398642780,-1500.0,0.00014486,2]
[408891032,1774398642790,-38463.1392584,0.00014491,2]
[408891033,1774398642800,-1000.0,0.00014498,2]
[408891034,1774398642810,-1000.0,0.00014508,2]
[408891035,1774398642820,-1000.0,0.00014508,2]
[408891036,1774398642831,-4355.08444372,0.00014508,2]
[408891037,1774398642841,-732.71,0.00014509,2]
[408891038,1774398642851,-200.0,0.00014509,2]
[408891039,1774398642860,-1000.0,0.0001451,2]
[408891040,1774398642870,-1000.0,0.0001451,2]
[408891041,1774398642880,-1000.0,0.0001451,2]
[408891042,1774398642889,-2000.0,0.00014516,2]
[408891043,1774398642899,-2000.0,0.00014516,2]
[408891044,1774398642909,-500.0,0.0001453,2]
[408891045,1774398642919,-1000.0,0.00014531,2]
[408891046,1774398642929,-347.47666717,0.00014531,2]